bitfinex-derivatives/quotes_BNBF0:USTF0_20250424
["timestamp","ask_amount","ask_price","bid_price","bid_amount"]
[1745478422230,1.26151995,606.58,605.39,1.07183376]
[1745478422437,1.26151995,606.78,605.39,1.07183376]
[1745478422932,1.26151995,606.78,605.4,1.07183376]
[1745478423132,1.26151995,606.78,605.4,2.48483376]
[1745478423337,0.28723299,606.77,605.41,1.07183376]
[1745478423541,0.28723299,606.77,605.42,1.07183376]
[1745478424137,0.28723299,606.77,605.4,2.976]
[1745478425335,1.26151995,606.57,605.4,2.976]
[1745478425538,1.26151995,606.57,605.41,1.07155594]
[1745478425838,1.26151995,606.57,605.42,1.07155594]
[1745478426438,1.26151995,606.57,605.43,1.07155594]
[1745478426939,1.26151995,606.57,605.4,2.976]
[1745478427735,0.28723299,606.77,605.4,2.976]
[1745478427939,1.26151995,606.85,605.4,2.976]
[1745478428239,0.28717847,606.76,605.4,2.976]
[1745478428537,1.26151995,606.85,605.4,2.976]
[1745478429142,0.28724959,606.84,605.4,2.976]
[1745478430642,1.26151995,606.62,605.4,2.976]
[1745478432241,0.28727685,606.61,605.4,2.976]
[1745478433941,1.26151995,606.66,605.4,2.976]
[1745478434942,1.26151995,606.66,605.4,4.664]
[1745478435238,0.28727211,606.65,605.4,4.664]
[1745478436146,1.26151995,606.57,605.4,4.664]
[1745478437443,1.26151995,606.57,605.41,1.07275875]
[1745478437945,1.26151995,606.57,605.42,1.07275875]
[1745478438545,1.26151995,606.57,605.43,0.8425612]
[1745478438751,1.26151995,606.57,605.42,1.07275875]
[1745478438949,1.26151995,606.57,605.43,2.54439615]
[1745478439151,1.26151995,606.57,605.44,0.84254444]
[1745478439347,1.26151995,606.57,605.45,1.07275875]
[1745478439544,0.28724129,606.63,605.45,1.07275875]
[1745478439946,1.26151995,606.7,605.46,1.07275875]
[1745478440152,1.26151995,606.7,605.46,2.25075875]
[1745478440549,1.26151995,606.7,605.47,1.07275875]
[1745478440951,1.26151995,606.7,605.48,1.07275875]
[1745478441252,0.28720691,606.69,605.48,1.07275875]
[1745478441452,0.28720691,606.69,605.49,1.07275875]
[1745478441645,0.28720691,606.69,605.49,2.40075875]
[1745478442147,0.28720691,606.69,605.5,1.07275875]
[1745478442752,0.28720691,606.69,605.51,1.07275875]
[1745478442954,1.26151995,606.89,605.51,1.07275875]
[1745478443154,1.26151995,606.89,605.52,1.07275875]
[1745478443455,1.26151995,606.89,605.53,1.07275875]
[1745478443757,1.26151995,606.89,605.54,1.07275875]
[1745478443953,0.2871607,606.88,605.54,1.07275875]
[1745478444655,0.2871607,606.88,605.55,1.07275875]
[1745478445158,0.2871607,606.88,605.56,1.07275875]
[1745478445457,0.2871607,606.88,605.54,1.262]
[1745478445858,0.2871607,606.88,605.55,1.06983794]
[1745478446457,0.2871607,606.88,605.56,1.06983794]
[1745478447253,0.2871607,606.88,605.54,1.262]
[1745478447559,0.2871607,606.88,605.55,1.06981214]
[1745478447959,0.2871607,606.88,605.54,1.262]
[1745478449561,0.2871607,606.88,605.55,1.06899946]
[1745478450256,0.2871607,606.88,605.56,1.06899946]
[1745478450554,0.2871607,606.88,605.57,1.06899946]
[1745478451159,0.2871607,606.88,605.58,1.06899946]
[1745478451759,1.26151995,606.93,605.59,0.8388676]
[1745478451964,1.26151995,606.93,605.6,0.8388676]
[1745478452161,1.26151995,606.93,605.61,0.8388676]
[1745478452359,1.26151995,606.93,605.6,1.06899946]
[1745478452660,0.28710976,606.95,605.61,1.06899946]
[1745478453159,0.28710976,606.95,605.62,1.06899946]
[1745478453761,1.26151995,607.55,605.54,1.262]
[1745478453762,1.26151995,607.55,605.63,1.90664777]
[1745478454060,1.26151995,607.55,605.64,0.83762654]
[1745478454261,1.26151995,607.55,605.64,1.06899946]
[1745478454462,0.28701268,607.54,605.64,1.06899946]
[1745478454964,1.26151995,607.55,605.65,1.90626651]
[1745478455159,1.26151995,607.55,605.65,1.06899946]
[1745478455460,1.26151995,607.55,605.66,1.06899946]
[1745478455861,1.26151995,607.27,605.67,1.06899946]
[1745478456459,1.26151995,607.27,605.68,1.06899946]
[1745478456656,1.26151995,607.27,605.69,1.06899946]
[1745478457257,1.26151995,607.27,605.7,1.06899946]
[1745478457457,1.26151995,607.27,605.71,1.06899946]
[1745478457658,0.28703872,607.26,605.71,1.06899946]
[1745478458059,0.28703872,607.26,605.72,1.06899946]
[1745478458661,0.28703872,607.26,605.73,1.06899946]
[1745478459465,0.28703872,607.26,605.74,1.06899946]
[1745478459962,0.28703872,607.26,605.42,0.28703753]
[1745478460167,0.28703872,607.26,605.43,2.82736027]
[1745478460364,0.28703872,607.26,605.44,1.76353248]
[1745478460566,0.28703872,607.26,605.45,1.76353248]
[1745478460766,0.28703872,607.26,605.46,1.76334094]
[1745478460967,1.26151995,607.34,605.47,1.76334094]
[1745478461162,1.26151995,607.34,605.48,2.52396399]
[1745478461361,1.26151995,607.34,605.49,1.4601362]
[1745478461565,1.26151995,607.34,605.5,2.52396399]
[1745478461762,1.26151995,607.34,605.51,1.4601362]
[1745478461962,1.26151995,607.34,605.52,1.4601362]
[1745478462161,1.26151995,607.34,605.53,1.4601362]
[1745478462366,0.28705292,607.33,605.54,2.52396399]
[1745478462662,0.28705292,607.33,605.55,1.45982588]
[1745478462860,0.28705292,607.33,605.56,1.45985856]
[1745478463062,0.28705292,607.33,605.57,2.52368635]
[1745478463262,0.28705292,607.33,605.58,0.83550736]
[1745478463461,0.28705292,607.33,605.59,1.89933515]
[1745478463766,0.28705292,607.33,605.59,1.06382779]
[1745478463966,1.26151995,607.39,605.6,1.06382779]
[1745478464568,1.26151995,607.39,605.61,1.06382779]
[1745478465268,0.28705648,607.38,605.62,1.06382779]
[1745478465665,0.28705648,607.38,605.63,1.06382779]
[1745478466068,1.26151995,607.3,605.64,1.06382779]
[1745478466368,1.26151995,607.3,605.65,1.06382779]
[1745478467068,1.26151995,607.3,605.66,1.06382779]
[1745478467267,0.28706239,607.29,605.66,1.06382779]
[1745478467467,0.28706239,607.29,605.67,1.06382779]
[1745478468170,0.28706239,607.29,605.4,0.28706239]
[1745478468362,0.28706239,607.29,605.41,1.45992991]
[1745478468566,0.28706239,607.29,605.4,0.28706239]
[1745478468567,0.28706239,607.29,605.42,2.52352286]
[1745478468767,0.28706239,607.29,605.43,1.45992991]
[1745478468968,0.28706239,607.29,605.44,1.45992991]
[1745478469169,0.28706239,607.29,605.45,1.45992991]
[1745478469371,0.28706239,607.29,605.46,1.45992991]
[1745478469565,0.28706239,607.29,605.47,1.45992991]
[1745478469768,0.28706239,607.29,605.48,0.83576156]
[1745478469968,1.26151995,607.42,605.49,0.83576156]
[1745478470169,1.26151995,607.42,605.5,1.06359295]
[1745478470471,0.28707187,607.41,605.5,1.06359295]
[1745478470672,0.28707187,607.41,605.49,1.06359295]
[1745478470871,0.28707187,607.41,605.5,0.83606376]
[1745478471172,0.28707187,607.41,605.51,1.06359295]
[1745478471671,0.28707187,607.41,605.49,1.06359295]
[1745478471873,0.28707187,607.41,605.5,0.83620308]
[1745478472073,0.28707187,607.41,605.51,1.89978903]
[1745478472372,0.28707187,607.41,605.51,1.06359295]
[1745478472770,0.28707187,607.41,605.49,1.06359295]
[1745478472970,1.26151995,607.35,605.5,0.8363137]
[1745478473175,1.26151995,607.35,605.51,0.8363137]
[1745478473368,1.26151995,607.35,605.52,2.52447204]
[1745478473572,1.26151995,607.35,605.53,1.46087909]
[1745478473769,1.26151995,607.35,605.54,0.8363137]
[1745478473972,1.26151995,607.35,605.55,1.89990665]
[1745478474172,0.28705766,607.34,605.56,0.8363137]
[1745478474473,0.28705766,607.34,605.57,1.06359295]
[1745478474974,0.28705766,607.34,605.49,1.06359295]
[1745478475168,0.28705766,607.34,605.48,1.35]
[1745478475169,1.54857761,607.34,605.5,2.52459262]
[1745478475367,1.54857761,607.34,605.51,1.46117739]
[1745478475568,1.54857761,607.34,605.52,1.46133534]
[1745478475774,1.54857761,607.34,605.53,2.52492829]
[1745478475969,1.26151995,607.34,605.54,1.46133534]
[1745478476173,1.26151995,607.34,605.55,1.90015726]
[1745478476373,1.26151995,607.34,605.56,0.83656431]
[1745478476569,1.26151995,607.34,605.57,0.83656431]
[1745478476774,1.26151995,607.34,605.58,0.83674925]
[1745478477074,1.26151995,607.34,605.59,1.06359295]
[1745478477269,0.28705411,607.33,605.59,1.06359295]
[1745478477575,0.28705411,607.33,605.49,1.06359295]
[1745478477775,0.28705411,607.33,605.5,1.46202615]
[1745478477977,1.26151995,607.29,605.51,1.46202615]
[1745478478178,1.26151995,607.29,605.52,1.46202615]
[1745478478379,1.26151995,607.29,605.53,2.5256191]
[1745478478577,1.26151995,607.29,605.54,1.46202615]
[1745478478779,1.26151995,607.29,605.55,1.46202615]
[1745478478978,1.26151995,607.29,605.53,1.06359295]
[1745478478979,1.26151995,607.29,605.56,1.46202615]
[1745478479180,1.26151995,607.29,605.57,1.06359295]
[1745478479381,1.26151995,607.29,605.58,1.46235189]
[1745478479581,1.26151995,607.29,605.59,1.46235189]
[1745478479882,1.26151995,607.29,605.6,2.52594484]
[1745478480079,1.26151995,607.29,605.61,2.52586816]
[1745478480277,0.287047,607.28,605.62,0.83710112]
[1745478480475,0.287047,607.28,605.63,1.90069407]
[1745478480678,0.287047,607.28,605.63,1.06359295]
[1745478480979,0.287047,607.28,605.49,1.06359295]
[1745478481182,0.287047,607.28,605.5,1.46222399]
[1745478481380,0.287047,607.28,605.51,1.46222399]
[1745478481577,0.287047,607.28,605.52,2.52581694]
[1745478481877,1.26151995,607.41,605.53,2.52581694]
[1745478482082,1.26151995,607.41,605.54,1.46224406]
[1745478482284,1.26151995,607.41,605.55,1.46224406]
[1745478482582,1.26151995,607.41,605.56,1.46224406]
[1745478482782,1.26151995,607.41,605.57,1.46224406]
[1745478483078,1.26151995,607.41,605.58,1.46224406]
[1745478483279,0.28703517,607.4,605.59,2.52583701]
[1745478483585,0.28703517,607.4,605.6,1.46224406]
[1745478483777,0.28703517,607.4,605.61,1.46224406]
[1745478483980,0.28703517,607.4,605.62,1.90065885]
[1745478484180,0.28703517,607.4,605.63,0.8370659]
[1745478484381,0.28703517,607.4,605.62,1.06359295]
[1745478484578,1.26151995,607.27,605.63,0.83689681]
[1745478484778,1.26151995,607.27,605.64,0.83689681]
[1745478484983,1.26151995,607.27,605.65,0.83689681]
[1745478485183,1.26151995,607.27,605.65,1.06359295]
[1745478485384,1.26151995,607.27,605.66,0.8369408]
[1745478485584,1.26151995,607.27,605.0,1.06359295]
[1745478485784,1.26151995,607.27,605.01,1.76521213]
[1745478485984,1.26151995,607.27,605.02,1.76521213]
[1745478486185,0.28711805,607.26,605.03,1.76521213]
[1745478486384,0.28711805,607.26,605.04,1.76521213]
[1745478486584,0.28711805,607.26,605.05,2.82880508]
[1745478486786,0.28711805,607.26,605.06,1.76521159]
[1745478487081,0.28711805,607.26,605.07,2.82880454]
[1745478487287,1.26151995,607.04,605.15,1.04785832]
[1745478487586,1.26151995,607.04,605.16,1.76582401]
[1745478487781,1.26151995,607.04,605.17,2.82941696]
[1745478487981,1.26151995,607.04,605.18,1.76582401]
[1745478488180,1.26151995,607.04,605.19,1.46262888]
[1745478488387,1.26151995,607.04,605.2,1.46262888]
[1745478488688,1.26151995,607.04,605.21,1.76582711]
[1745478488889,1.26151995,607.04,605.22,2.82942006]
[1745478489087,1.26151995,607.04,605.23,1.76582711]
[1745478489387,0.28712161,607.03,605.24,2.83079757]
[1745478489584,0.28712161,607.03,605.25,1.76720462]
[1745478489789,0.28712161,607.03,605.26,2.52759934]
[1745478489988,0.28712161,607.03,605.27,1.76720613]
[1745478490288,1.26151995,606.97,605.28,2.83079908]
[1745478490481,1.26151995,606.97,605.29,1.76720613]
[1745478490687,1.26151995,606.97,605.3,1.76720613]
[1745478490887,1.26151995,606.97,605.31,2.83079908]
[1745478491189,1.26151995,606.97,605.32,1.76740059]
[1745478491389,1.26151995,606.97,605.33,2.83099067]
[1745478491582,1.26151995,606.97,605.34,1.76739772]
[1745478491784,1.26151995,606.97,605.33,1.06359295]
[1745478491785,1.26151995,606.97,605.35,2.83099067]
[1745478491989,1.26151995,606.97,605.36,1.76739772]
[1745478492189,1.26151995,606.97,605.37,1.76739772]
[1745478492488,1.26151995,606.97,605.38,1.76739772]
[1745478492787,1.26151995,606.97,605.39,2.83099067]
[1745478492989,1.26151995,606.97,605.4,1.76782563]
[1745478493188,1.26151995,606.99,605.41,1.76782563]
[1745478493386,1.26151995,606.99,605.42,1.76782563]
[1745478493587,1.26151995,606.99,605.43,1.76782563]
[1745478493784,1.26151995,606.99,605.44,1.76782563]
[1745478493989,1.26151995,606.99,605.45,1.76782563]
[1745478494189,1.26151995,606.99,605.46,2.83141858]
[1745478494485,1.26151995,606.99,605.47,1.76782563]
[1745478494690,1.26151995,606.99,605.48,1.76782563]
[1745478494990,1.26151995,606.99,605.49,2.83141858]
[1745478495187,1.26151995,606.97,605.5,1.46462876]
[1745478495389,1.26151995,606.97,605.51,1.46462876]
[1745478495586,1.26151995,606.97,605.52,1.46462876]
[1745478495789,1.26151995,606.97,605.53,2.52822171]
[1745478495989,1.26151995,606.97,605.54,1.46462876]
[1745478496290,1.26151995,606.97,605.55,1.46462876]
[1745478496491,1.26151995,606.97,605.56,1.46462876]
[1745478496686,1.26151995,606.97,605.57,2.52822171]
[1745478496886,1.26151995,606.97,605.58,1.46462876]
[1745478497086,1.26151995,606.97,605.59,1.46462876]
[1745478497390,1.26151995,606.97,605.6,2.52822171]
[1745478497586,1.26151995,606.97,605.61,2.52822171]
[1745478497791,1.26151995,606.97,605.62,1.46462876]
[1745478497984,1.26151995,606.97,605.61,1.06359295]
[1745478497985,1.26151995,606.97,605.63,2.52822171]
[1745478498186,1.26151995,606.97,605.64,1.46462876]
[1745478498492,0.28708016,607.06,605.65,1.46462876]
[1745478498691,0.28708016,607.06,605.66,2.52822171]
[1745478498891,0.28708016,607.06,605.67,1.46462876]
[1745478499090,0.28708016,607.06,605.68,1.46462876]
[1745478499287,0.28708016,607.06,605.69,2.52822171]
[1745478499489,0.28708016,607.06,605.7,1.46462876]
[1745478499787,0.28708016,607.06,605.71,2.52822171]
[1745478499992,1.26151995,607.2,605.72,2.52822171]
[1745478500192,0.28703635,607.06,605.73,1.46462876]
[1745478500492,1.26151995,607.2,605.74,1.46462876]
[1745478500693,1.26151995,607.2,605.75,2.52822171]
[1745478500988,1.26151995,607.2,605.76,1.46462876]
[1745478501194,1.26151995,607.18,605.77,1.46462876]
[1745478501394,1.26151995,607.18,605.78,1.46462876]
[1745478501691,1.26151995,607.18,605.79,1.46462876]
[1745478501892,1.26151995,607.18,605.8,1.46462876]
[1745478502192,1.26151995,607.18,605.81,1.46462876]
[1745478502393,1.26151995,607.18,605.82,1.46462876]
[1745478502692,1.26151995,607.18,605.83,2.52822171]
[1745478502892,1.26151995,607.18,605.84,1.46462876]
[1745478503093,1.26151995,607.18,605.85,1.46462876]
[1745478503294,1.26151995,607.18,605.86,1.4668246]
[1745478503489,1.26151995,607.18,605.87,0.83808147]
[1745478504090,1.26151995,607.18,605.88,1.06359295]
[1745478504395,0.28701741,607.17,605.88,1.06359295]
[1745478504787,0.28701741,607.17,605.89,1.06359295]
[1745478505587,0.28701741,607.17,605.9,1.06359295]
[1745478505889,1.26151995,607.69,605.9,1.06359295]
[1745478506094,1.26151995,607.69,605.91,1.06359295]
[1745478506487,1.26151995,607.69,605.92,1.06359295]
[1745478507092,2.14633602,608.62,604.14,0.69695426]
[1745478507093,1.26151995,607.56,605.93,1.06359295]
[1745478507696,1.26151995,607.56,605.94,1.47127491]
[1745478507897,1.26151995,607.56,605.95,1.4712675]
[1745478508191,1.26151995,607.56,605.96,0.84224381]
[1745478508395,1.26151995,607.56,605.97,0.84218242]
[1745478508593,1.26151995,607.56,605.52,0.28695114]
[1745478508789,1.26151995,607.56,605.53,1.47120463]
[1745478509093,1.26151995,607.56,605.54,1.47120463]
[1745478509290,1.26151995,607.56,605.55,1.47120463]
[1745478509592,1.26151995,607.56,605.56,1.47118399]
[1745478509890,1.26151995,607.56,605.57,1.47118399]
[1745478510194,0.28696416,607.55,605.58,1.47118399]
[1745478510395,0.28696416,607.55,605.59,1.47118399]
[1745478510595,0.28696416,607.55,605.6,1.47118399]
[1745478510892,1.26151995,607.54,605.61,1.47118399]
[1745478511089,1.26151995,607.54,605.62,1.47118399]
[1745478511289,1.26151995,607.54,605.63,1.47025015]
[1745478511494,1.26151995,607.54,605.64,1.47025015]
[1745478511690,1.26151995,607.54,605.65,1.47025015]
[1745478511896,1.26151995,607.54,605.66,1.47025015]
[1745478512096,1.26151995,607.54,605.67,1.47025015]
[1745478512395,1.26151995,607.54,605.68,1.47025015]
[1745478512594,1.26151995,607.54,605.69,1.47025015]
[1745478512790,1.26151995,607.54,605.7,1.47025015]
[1745478512989,1.26151995,607.54,605.71,1.47025015]
[1745478513189,1.26151995,607.54,605.72,1.47016137]
[1745478513390,0.28694996,607.53,605.73,1.47016137]
[1745478513597,0.28694996,607.53,605.74,1.47016137]
[1745478513796,0.28694996,607.53,605.75,1.47016137]
[1745478513997,0.28694996,607.53,605.76,1.47016137]
[1745478514198,0.28694996,607.53,605.77,1.47016137]
[1745478514398,0.28694996,607.53,605.78,1.47016137]
[1745478514599,0.28694996,607.53,605.79,1.47016137]
[1745478514800,0.28694996,607.53,605.8,1.47016137]
[1745478514999,1.26151995,608.25,605.81,1.46982673]
[1745478515201,1.26151995,608.25,605.82,1.46982673]
[1745478515399,1.26151995,608.25,605.83,1.46982673]
[1745478515599,1.26151995,608.25,605.84,1.46982673]
[1745478515899,1.26151995,608.25,605.85,1.46982673]
[1745478516098,1.26151995,608.2,605.86,1.46982673]
[1745478516298,1.26151995,608.2,605.87,1.46982673]
[1745478516499,1.26151995,608.2,605.88,1.46982673]
[1745478516699,1.26151995,608.2,605.64,0.28685535]
[1745478517003,1.26151995,608.2,605.65,1.46914418]
[1745478517197,1.26151995,608.2,605.66,1.46914418]
[1745478517401,1.26151995,608.2,605.67,1.46914418]
[1745478517602,1.26151995,608.2,605.68,1.46914418]
[1745478517803,1.26151995,608.2,605.69,1.46914418]
[1745478518001,1.26151995,608.2,605.7,1.46914418]
[1745478518202,1.26151995,608.09,605.71,1.46914418]
[1745478518501,1.26151995,608.09,605.72,1.46914418]
[1745478518696,1.26151995,608.09,605.73,1.46914418]
[1745478518898,1.26151995,608.09,605.74,1.46914418]
[1745478519097,0.28688846,608.08,605.75,1.46914418]
[1745478519304,0.28688846,608.08,605.76,1.46914418]
[1745478519505,0.28688846,608.08,605.77,1.46914418]
[1745478519698,0.28688846,608.08,605.78,2.53884676]
[1745478520002,0.28688846,608.08,605.79,1.46914418]
[1745478520203,1.26151995,607.66,605.8,1.46914418]
[1745478520402,1.26151995,607.66,605.81,1.46914418]
[1745478520599,1.26151995,607.66,605.82,1.46914418]
[1745478520899,1.26151995,607.66,605.83,2.53884676]
[1745478521102,1.26151995,607.66,605.84,1.46914418]
[1745478521303,1.26151995,607.66,605.85,1.46914418]
[1745478521506,1.26151995,607.66,605.86,1.46914418]
[1745478521704,1.26151995,607.66,605.87,2.53884676]
[1745478521904,0.28692512,607.65,605.88,1.46914418]
[1745478522104,0.28692512,607.65,605.89,1.46914418]
[1745478522405,0.28692512,607.65,605.9,2.53850017]
[1745478522606,0.28692512,607.65,605.91,1.91033066]
[1745478522799,0.28692512,607.65,605.92,0.84062808]
[1745478523003,0.28692512,607.65,605.93,1.06970258]
[1745478523200,1.26151995,607.55,605.93,1.06970258]
[1745478523604,1.26151995,607.55,605.94,1.06970258]
[1745478524104,1.26151995,607.55,605.95,1.06970258]
[1745478524305,0.28692748,607.54,605.95,1.06970258]
[1745478524505,0.28692748,607.54,605.96,1.06970258]
[1745478525506,0.28692748,607.54,605.97,1.06970258]
[1745478525706,0.28692748,607.54,605.98,1.06970258]
[1745478526501,0.28692748,607.54,605.99,1.06970258]
[1745478526906,0.28692748,607.54,606.0,1.06970258]
[1745478527109,1.26151995,607.66,606.0,1.06970258]
[1745478527606,1.26151995,607.66,606.01,1.06970258]
[1745478528108,1.26151995,607.66,606.02,1.06970258]
[1745478528408,0.2868991,607.65,606.02,1.06970258]
[1745478529011,0.2868991,607.65,606.03,1.06970258]
[1745478529311,0.2868991,607.65,606.04,1.06970258]
[1745478529910,0.2868991,607.65,606.05,1.06970258]
[1745478530111,1.26151995,607.84,606.05,1.06970258]
[1745478530410,1.26151995,607.84,606.06,1.06970258]
[1745478530710,1.26151995,607.84,606.07,1.06970258]
[1745478531206,0.28687072,607.83,606.07,1.06970258]
[1745478531410,0.28687072,607.83,605.71,0.28687072]
[1745478531712,1.26151995,607.57,605.72,1.46780224]
[1745478531910,1.26151995,607.57,605.73,1.46780224]
[1745478532111,1.26151995,607.57,605.74,2.53691217]
[1745478532410,1.26151995,607.57,605.75,2.53691217]
[1745478532706,1.26151995,607.57,605.76,1.46780224]
[1745478532906,1.26151995,607.57,605.77,2.53691217]
[1745478533103,1.26151995,607.57,605.78,1.46780224]
[1745478533305,1.26151995,607.57,605.79,1.46780224]
[1745478533508,1.26151995,607.57,605.8,1.46780224]
[1745478533710,1.26151995,607.57,605.81,1.46780224]
[1745478533909,1.26151995,607.57,605.82,1.46780224]
[1745478534110,1.26151995,607.57,605.83,1.46780224]
[1745478534307,0.28693222,607.56,605.84,1.46780224]
[1745478534512,0.28693222,607.56,605.85,1.46780224]
[1745478534708,1.26151995,607.49,605.86,2.53691217]
[1745478534912,1.26151995,607.49,605.87,1.46780224]
[1745478535211,1.26151995,607.49,605.88,1.46780224]
[1745478535411,1.26151995,607.49,605.89,2.53691217]
[1745478535611,1.26151995,607.49,605.9,1.46780224]
[1745478535907,1.26151995,607.49,605.91,1.46785286]
[1745478536111,1.26151995,607.49,605.92,2.53696279]
[1745478536309,1.26151995,607.49,605.93,1.46785286]
[1745478536506,1.26151995,607.49,605.94,2.53696279]
[1745478536707,1.26151995,607.49,605.95,1.46785286]
[1745478536909,1.26151995,607.49,605.96,0.84041199]
[1745478537109,1.26151995,607.49,605.97,1.06910993]
[1745478537411,0.28692512,607.48,605.97,1.06910993]
[1745478537611,0.28692512,607.48,605.98,1.06910993]
[1745478537812,1.54844507,607.48,605.98,1.06910993]
[1745478538112,1.54844507,607.48,605.99,1.06910993]
[1745478538509,1.54844507,607.48,606.0,0.84043784]
[1745478538712,1.54844507,607.48,606.01,1.46811748]
[1745478538910,1.54844507,607.48,606.02,1.46811748]
[1745478539113,1.54844507,607.48,606.03,2.53722741]
[1745478539313,1.54844507,607.48,606.04,1.46794494]
[1745478539612,1.54844507,607.48,606.05,1.46794494]
[1745478539814,1.54844507,607.48,606.06,1.46794494]
[1745478540113,1.54844507,607.48,606.07,2.53705487]
[1745478540315,0.28692512,607.48,606.08,1.46794494]
[1745478540509,0.28692512,607.48,606.09,1.46794494]
[1745478540714,0.28692512,607.48,606.1,2.53705487]
[1745478540913,0.28692512,607.48,606.11,1.46794494]
[1745478541114,0.28692512,607.48,606.12,1.90954777]
[1745478541314,0.28692512,607.48,606.13,0.84043784]
[1745478541514,0.28692512,607.48,606.12,1.06910993]
[1745478541915,1.26151995,607.6,606.13,1.06910993]
[1745478542215,1.26151995,607.6,606.14,1.06910993]
[1745478542716,1.26151995,607.6,606.15,1.06910993]
[1745478542919,1.26151995,607.67,606.15,1.06910993]
[1745478543217,0.2868518,607.59,606.15,1.06910993]
[1745478543419,1.26151995,607.67,606.16,1.06910993]
[1745478543916,1.26151995,607.67,606.17,1.06910993]
[1745478544314,1.26151995,607.67,606.18,1.06910993]
[1745478544715,0.28683998,607.66,606.19,1.06910993]
[1745478545219,0.28683998,607.66,606.2,1.06910993]
[1745478545620,0.28683998,607.66,605.79,0.2868518]
[1745478545816,0.28683998,607.66,605.8,1.46658656]
[1745478546015,0.28683998,607.66,605.81,1.46658656]
[1745478546213,0.28683998,607.66,605.82,1.46658656]
[1745478546422,0.28683998,607.66,605.83,1.46658656]
[1745478546619,0.28683998,607.66,605.84,2.53497813]
[1745478546817,0.28683998,607.66,605.85,1.46658656]
[1745478547014,0.28683998,607.66,605.86,0.6271106]
[1745478547215,0.28683998,607.66,605.87,2.53498282]
[1745478547414,0.28683998,607.66,605.88,1.46659125]
[1745478547619,0.28683998,607.66,605.89,1.46659125]
[1745478547816,0.28683998,607.66,605.9,2.53498282]
[1745478548017,1.26151995,608.04,605.91,1.46659125]
[1745478548217,1.26151995,608.04,605.92,2.53498282]
[1745478548416,1.26151995,608.04,605.93,1.46659125]
[1745478548720,1.26151995,608.04,605.94,1.46659125]
[1745478548919,1.26151995,608.04,605.95,2.53498282]
[1745478549117,1.26151995,608.04,605.96,1.46659125]
[1745478549317,0.28684116,608.03,605.97,1.46659125]
[1745478549622,0.28684116,608.03,605.98,1.06839157]
[1745478549921,0.28684116,608.03,605.99,2.38939157]
[1745478550717,0.28684116,608.03,606.0,2.65239157]
[1745478550921,1.26151995,608.02,606.0,2.65239157]
[1745478551122,1.26151995,608.02,606.0,1.584]
[1745478553822,1.26151995,607.46,606.0,1.584]
[1745478554322,0.28696652,607.45,606.0,1.584]
[1745478556623,1.26151995,607.31,606.0,1.584]
[1745478559729,2.43330254,607.45,606.0,1.584]
[1745478559730,1.26151995,607.4,606.0,1.584]
[1745478561327,0.28697362,607.39,606.0,1.584]
[1745478563128,1.26151995,607.42,606.0,1.584]
[1745478563326,0.28697362,607.38,606.0,1.584]
[1745478563829,1.26151995,607.32,606.0,1.584]
[1745478565032,0.28697362,607.38,606.0,1.584]
[1745478566332,1.25310558,607.44,606.0,1.584]
[1745478567229,0.28697126,607.43,606.0,1.584]
[1745478568935,0.28697126,607.43,606.01,1.707]
[1745478569136,1.25310558,607.44,606.01,1.707]
[1745478569332,0.28696889,607.42,606.01,1.707]
[1745478569537,1.25310558,607.4,606.01,1.707]
[1745478571941,0.28696889,607.42,606.01,1.707]
[1745478575043,1.25310558,607.5,606.01,1.707]
[1745478576345,0.28695114,607.49,606.01,1.707]
[1745478578050,1.25310558,607.84,606.01,1.707]
[1745478578346,1.25310558,607.84,606.02,1.158]
[1745478578750,1.25310558,607.96,606.02,1.158]
[1745478579246,0.28689555,607.95,606.02,1.158]
[1745478580750,1.25310558,607.85,606.02,1.158]
[1745478582748,1.25310558,607.82,606.02,1.158]
[1745478583453,1.25310558,607.82,606.02,2.541]
[1745478585357,0.28691211,607.81,606.02,2.541]
[1745478585557,1.25310558,607.62,606.02,2.541]
[1745478587755,1.25310558,607.62,606.02,3.717]
[1745478588261,1.25310558,607.59,606.02,3.717]
[1745478590359,0.28693931,607.58,606.02,3.717]
[1745478591162,1.25310558,607.3,606.02,3.717]
[1745478593863,1.25310558,607.29,606.02,3.717]
[1745478594359,0.28697481,607.28,606.02,3.717]
[1745478595968,1.25310558,607.29,606.02,3.717]
[1745478596669,1.25310558,607.3,606.02,3.717]
[1745478597371,0.28697362,607.29,606.02,3.717]
[1745478599274,1.25310558,607.3,606.02,3.717]
[1745478599474,1.25310558,606.93,606.02,3.717]
[1745478601979,1.25310558,607.36,606.02,3.717]
[1745478602578,1.25310558,607.36,606.03,1.06992142]
[1745478603379,0.28694878,607.35,606.04,1.06992142]
[1745478603879,1.25310558,607.33,606.04,1.06992142]
[1745478604078,1.25310558,607.33,606.05,1.06992142]
[1745478604780,1.25310558,607.33,606.06,1.06992142]
[1745478605382,0.28693458,607.32,606.06,3.52492142]
[1745478605580,0.28693458,607.32,606.07,1.06992142]
[1745478605982,0.28693458,607.32,606.08,1.06992142]
[1745478606580,1.25310558,607.28,606.09,1.06992142]